Cogmind - Beta 11.1 @@@ ROGUE MODE // 2022.05.10 @ 04:07:22 Player: cptwinky Result: Destroyed by AD-0RF with AD-0RF's Magmablaster Performance ------------- Evolutions (1) 500 Regions Visited (6) 1200 Robots Destroyed (58) 290 Value Destroyed (1127) 1127 Prototype IDs (34) 680 Alien Tech Used (0) 0 Bonus (526) 526 TOTAL SCORE: 4323 Bonus ------- High Alert Combat Kills 73 Follower Combat Kills 168 Aligned with FarCom 300 Friendly Fire -15 Cogmind --------- Core Integrity 0/400 Matter 121/300 Energy 100/100 System Corruption 0% Temperature Danger (459) Movement Treading (240) Ox1 Location -8/Mines Parts ------- > --- POWER (1) -------- Cold Fusion Reactor > --- PROPULSION (3) --- Light Treads Armored Treads > --- UTILITY (3) ------ (None) > --- WEAPON (2) ------- 8R-AWN's Boregun 8R-AWN's Boregun > --- INVENTORY (5) ---- Gravity Neutralizer Autogun Autogun Rocket Launcher Peak State ------------ > --- POWER ------------ Cold Fusion Reactor > --- PROPULSION ------- Light Treads Light Treads Armored Treads > --- UTILITY ---------- 8R-AWN's Armor/EX > --- WEAPON ----------- 8R-AWN's Boregun 8R-AWN's Boregun > --- INVENTORY -------- Gravity Neutralizer Autogun Autogun Rocket Launcher [Rating: 62] Favorites ----------- Power Cooled Ion Engine Engine Cooled Ion Engine Reactor Cold Fusion Reactor Propulsion Armored Treads Treads Armored Treads Leg Aluminum Leg Wheel Wheel Utility High-capacity Storage Unit Device Shield Generator Storage High-capacity Storage Unit Processor Experimental Core Analyzer Hackware Makeshift System Shield Protection Medium Armor Plating Weapon Autogun Ballistic Gun Autogun Launcher Rocket Launcher Slashing Weapon Blade Saw Build | -11 -10 -10 -9 -9 -9 -8 ------- Run | Scr Mat Min Mat Min Exi Min Slots Evolved 2 | . . . 2 . . . Power . | . . . . . . . Propulsion 1 | . . . 1 . . . Utility 1 | . . . 1 . . . Weapon . | . . . . . . . Parts Attached 68 | 3 3 . 21 3 35 3 Power 8 | . . . 4 . 4 . Engine 7 | . . . 4 . 3 . Core . | . . . . . . . Reactor 1 | . . . . . 1 . Propulsion 17 | 2 . . 6 . 9 . Treads 15 | 2 . . 5 . 8 . Leg 1 | . . . . . 1 . Wheel 1 | . . . 1 . . . Hover . | . . . . . . . Flight . | . . . . . . . Utility 19 | . 2 . 2 1 13 1 Device 9 | . 1 . . 1 7 . Storage 3 | . 1 . 1 . 1 . Processor 1 | . . . . . 1 . Hackware 2 | . . . . . 2 . Protection 4 | . . . 1 . 2 1 Artifact . | . . . . . . . Weapon 24 | 1 1 . 9 2 9 2 Energy Gun . | . . . . . . . Energy Cannon . | . . . . . . . Ballistic Gun 16 | 1 1 . 5 1 6 2 Ballistic Cannon . | . . . . . . . Launcher 6 | . . . 4 1 1 . Special Weapon . | . . . . . . . Impact Weapon . | . . . . . . . Slashing Weapon 2 | . . . . . 2 . Piercing Weapon . | . . . . . . . Special Melee Weapon . | . . . . . . . Unidentified Prototypes 10 | . . . 2 . 8 . Parts Lost 6 | . . . . 1 3 2 Power . | . . . . . . . Propulsion 1 | . . . . . . 1 Utility 5 | . . . . 1 3 1 Weapon . | . . . . . . . Highest Loss Streak 2 | . . . . 1 1 2 To Critical Strikes . | . . . . . . . Average Slot Usage (%) 95 | . 98 100 96 95 93 76 Engine 10 | . 14 14 10 11 8 . Treads 31 | . 28 28 32 33 32 33 Device 9 | . 12 14 11 7 9 . Storage 10 | . 14 14 11 11 10 . Protection 6 | . . . 7 11 6 9 Ballistic Gun 22 | . 28 28 21 21 20 22 Naked Turns . | . . . . . . . Heaviest Build 68 | 11 20 20 63 63 68 59 Greatest Support 60 | 40 40 40 60 60 60 60 Greatest Overweight (x) 4 | . . . 4 1 1 1 Average Overweight (x) . | . . . . 1 . . Largest Inventory Capacity 20 | 8 10 10 20 20 20 20 Average Capacity 17 | 8 8 10 19 20 18 5 Most Carried 20 | 6 9 10 20 20 20 20 Average Carried 16 | 6 7 9 18 19 17 4 Final Capacity 20 | 8 10 10 20 20 20 5 Final Carried 20 | 6 9 10 20 20 20 4 Class Distribution -------------------- 92% | Mutant 7% | Scavenger-Mutant Dominant Class ---------------- Mutant | -10/Materials Mutant | -10/Mines Mutant | -9/Materials Mutant | -9/Mines Mutant | -9/Exiles Scavenger-Mutant | -8/Mines Resources | -11 -10 -10 -9 -9 -9 -8 ----------- Run | Scr Mat Min Mat Min Exi Min Matter Collected 1810 | 210 53 57 501 214 775 . Remotely . | . . . . . . . Salvage Created 1825 | . 178 103 946 164 396 38 Parts 157 | . 12 3 59 13 64 6 Haulers Intercepted 4 | . . . 4 . . . Recyclers Shooed 1 | . . . 1 . . . Parts Field Recycled . | . . . . . . . Retrieved Matter . | . . . . . . . Parts Self-Destructed . | . . . . . . . Prevented . | . . . . . . . Kills | -11 -10 -10 -9 -9 -9 -8 ------- Run | Scr Mat Min Mat Min Exi Min Combat Hostiles Destroyed 34 | . 4 2 17 7 4 . Melee 1 | . . . . . 1 . Guns 18 | . 4 2 7 5 . . AOE 15 | . . . 10 2 3 . Classes Destroyed 10 | . 2 . 6 1 1 . Worker 4 | . . . 4 . . . Builder 6 | . . . 4 . . 2 Hauler 4 | . . . 4 . . . Recycler 2 | . . . 2 . . . Operator 1 | . 1 . . . . . Swarmer 7 | . . . 4 3 . . Grunt 19 | . 4 2 10 3 . . Sentry 3 | . . . 3 . . . Zionite 8 | . . . . . 8 . Assembled 4 | . . . . 1 3 . Best Kill Streak 11 | . 2 2 11 3 5 2 Combat Bots Only 7 | . 2 2 7 3 3 . Max Kills in Single Turn 7 | . 1 1 7 2 1 1 Gunslinging . | . . . . . . . Exploded 2 | . . . 2 2 1 . Melee 1 | . . . . . 1 . Uniques/NPCs Destroyed 4 | . . . . . 4 . 8R-AWN (-9/Exiles) EX-DEC (-9/Exiles) EX-HEX (-9/Exiles) EX-BIN (-9/Exiles) Combat | -11 -10 -10 -9 -9 -9 -8 -------- Run | Scr Mat Min Mat Min Exi Min Damage Taken 2743 | . 46 15 329 184 1178 991 Core 422 | . 7 8 44 14 59 290 Absorbed by Shields 422 | . 18 6 129 26 243 . Core Remaining (%) 97 | 100 . 94 . . . . Volleys Fired 120 | . 10 5 49 12 30 14 Largest 2 | . 2 2 2 2 2 2 Hottest 60 | . 43 43 46 46 60 60 Shots Fired 229 | . 20 10 90 23 58 28 Gun 217 | . 20 10 82 22 55 28 Cannon . | . . . . . . . Launcher 12 | . . . 8 1 3 . Special . | . . . . . . . Kinetic 217 | . 20 10 82 22 55 28 Thermal . | . . . . . . . Explosive 12 | . . . 8 1 3 . Electromagnetic . | . . . . . . . Robot Hit Streak 25 | . 5 6 25 3 8 5 Robot Miss Streak 4 | . 2 1 3 2 3 4 Penetration Max 1 | . . . . . 1 1 Secondary Targets 1 | . . . . 1 . . Max Gunslinging Chain 1 | . . . . 1 . . Shots Hit Robots 177 | . 11 7 65 12 67 15 Core Hits 110 | . 8 5 51 9 32 5 Critical Kills 5 | . 2 . . . 2 1 Critical Parts Destroyed 12 | . . . 1 . 8 3 Critical Strikes 23 | . 2 . 1 . 14 6 Destroy 19 | . 2 . 1 . 10 6 Sever 4 | . . . . . 4 . Melee Attacks 41 | . . . . . 41 . Impact . | . . . . . . . Slashing 41 | . . . . . 41 . Piercing . | . . . . . . . Sneak Attacks . | . . . . . . . Combat Hostiles . | . . . . . . . Follow-up Attacks 7 | . . . . . 7 . Damage Inflicted 4325 | . 146 140 2118 313 1317 291 Guns 2317 | . 140 118 991 196 582 290 Cannons . | . . . . . . . Explosions 1345 | . . . 1074 102 169 . Melee 566 | . . . . . 566 . Ramming 97 | . 6 22 53 15 . 1 Kinetic 2317 | . 140 118 991 196 582 290 Thermal . | . . . . . . . Explosive 1057 | . . . 786 102 169 . Electromagnetic 288 | . . . 288 . . . Impact . | . . . . . . . Slashing 566 | . . . . . 566 . Piercing . | . . . . . . . Highest Corruption 4 | . 1 1 . . 4 . Average Corruption 1 | . 1 1 . . 3 . Corruption Purged 4 | . . . . . 4 . Corruption Blocked . | . . . . . . . Effects 8 | . 3 3 . . 2 . Heat Flow Errors 3 | . 2 1 . . . . Energy Discharges 1 | . 1 . . . . . Data Loss (minor) 1 | . . 1 . . . . Data Loss (major) 2 | . . 1 . . 1 . Misfires 1 | . . . . . 1 . Overload Shots . | . . . . . . . Overflow Damage 5 | . . . 5 . . . Projectiles . | . . . . . . . Explosions . | . . . . . . . Melee 5 | . . . 5 . . . Knockbacks . | . . . . . . . Impact . | . . . . . . . Kinetic . | . . . . . . . Secondary . | . . . . . . . Self-Inflicted Damage 36 | . . . . 6 30 . Shots 2 | . . . . 1 1 . Rammed 21 | . 2 8 4 4 . 3 Targets Rammed 21 | . 2 8 4 4 . 3 Kicked . | . . . . . . . Crushed . | . . . . . . . Highest Temperature 672 | . 218 184 22 22 . 672 Average Temperature 132 | . 72 51 7 4 . 403 Received Heat Transfer 1533 | . 24 8 142 39 . 1320 Effects 16 | . . . . . . 16 Energy Bleed 1 | . . . . . . 1 Short Circuit 5 | . . . . . . 5 Damage (minor) 2 | . . . . . . 2 Damage (major) 6 | . . . . . . 6 Damage (core) 2 | . . . . . . 2 Siege Activations . | . . . . . . . Robots Corrupted . | . . . . . . . Combat Hostiles . | . . . . . . . Parts Fried . | . . . . . . . Impact Corruptions 1 | . . . 1 . . . Robots Melted . | . . . . . . . Combat Hostiles . | . . . . . . . Parts Melted . | . . . . . . . Heat Transferred . | . . . . . . . Parts Sabotaged . | . . . . . . . Parts Stolen . | . . . . . . . Parts Stripped . | . . . . . . . Power Chain Reactions 1 | . . . 1 . . . Missiles Intercepted . | . . . . . . . Alert | -11 -10 -10 -9 -9 -9 -8 ------- Run | Scr Mat Min Mat Min Exi Min Peak Influence 704 | . 264 152 704 291 . 17 Initial 226 | . . 102 . 226 . . Average 167 | . 138 78 363 112 . 4 Maximum Alert Level 3 | . 1 . 3 1 . . Low Security (%) 67 | 100 66 100 32 71 . 100 Level 1 22 | . 33 . 27 28 . . Level 2 8 | . . . 34 . . . Level 3 1 | . . . 5 . . . Level 4 . | . . . . . . . Level 5 . | . . . . . . . High Security . | . . . . . . . Max Security . | . . . . . . . Squads Dispatched 6 | . 4 . 2 . . . Investigation 3 | . 3 . . . . . Extermination . | . . . . . . . Reinforcement 3 | . 1 . 2 . . . Assault . | . . . . . . . Garrison . | . . . . . . . Intercept . | . . . . . . . Searches Triggered . | . . . . . . . Construction Impeded 1 | . . . 1 . . . Haulers Reinforced . | . . . . . . . Active Scanning Responses . | . . . . . . . Cargo Convoy Interrupts . | . . . . . . . Stealth | -11 -10 -10 -9 -9 -9 -8 --------- Run | Scr Mat Min Mat Min Exi Min Distress Signals 5 | . 1 . 3 1 . . Communications Jammed . | . . . . . . . Distress Signals . | . . . . . . . Times Spotted 99 | . 12 2 31 10 43 1 Peak Tracking Total 9 | . 6 2 5 3 9 1 Tactical Retreats 9 | . 1 . . 3 5 . Traps | -11 -10 -10 -9 -9 -9 -8 ------- Run | Scr Mat Min Mat Min Exi Min Traps Triggered . | . . . . . . . Indirectly . | . . . . . . . Trap Hack Attempts . | . . . . . . . Triggered . | . . . . . . . Disarmed . | . . . . . . . Reprogrammed . | . . . . . . . Reused . | . . . . . . . Traps Extracted . | . . . . . . . Installed . | . . . . . . . Triggered . | . . . . . . . Exploded 3 | . . . . . 3 . Machines | -11 -10 -10 -9 -9 -9 -8 ---------- Run | Scr Mat Min Mat Min Exi Min Machines Disabled 20 | . . . 5 2 13 . Max in Single Turn 2 | . . . 2 2 2 . Machines Sabotaged . | . . . . . . . Garrisons Compromised . | . . . . . . . Overloaded Fab Kills . | . . . . . . . Hacking | -11 -10 -10 -9 -9 -9 -8 --------- Run | Scr Mat Min Mat Min Exi Min Machines Accessed 14 | . 4 . 7 1 2 . Terminals 7 | . 2 . 4 1 . . Fabricators . | . . . . . . . Repair Stations . | . . . . . . . Recycling Units 3 | . 2 . 1 . . . Scanalyzers 2 | . . . 2 . . . Garrison Access . | . . . . . . . Total Hacks 40 | . 14 . 22 2 2 . Successful 24 | . 8 . 13 1 2 . Failed 16 | . 6 . 9 1 . . Catastrophic 1 | . . . 1 . . . Database Lockouts . | . . . . . . . Manual 22 | . 10 . 10 1 1 . Terminals 23 | . 7 . 14 2 . . Fabricators . | . . . . . . . Repair Stations . | . . . . . . . Recycling Units 8 | . 7 . 1 . . . Scanalyzers 7 | . . . 7 . . . Garrison Access . | . . . . . . . Terminal Hacks 13 | . 5 . 5 1 2 . Record 1 | . . . . . 1 . Part Schematic 1 | . 1 . . . . . Robot Schematic 1 | . 1 . . . . . Robot Analysis 5 | . 3 . 2 . . . Scanalyzer Index 1 | . . . 1 . . . Hauler Manifests 1 | . . . 1 . . . Zone Layout 2 | . . . 1 1 . . EX-Prototype ID Bank 1 | . . . . . 1 . Fabricator Hacks . | . . . . . . . Repair Station Hacks . | . . . . . . . Recycling Unit Hacks 2 | . 1 . 1 . . . Retrieve Components 2 | . 1 . 1 . . . Scanalyzer 4 | . . . 4 . . . Insert Component 3 | . . . 3 . . . Analyze 1 | . . . 1 . . . Garrison Access Hacks . | . . . . . . . Unauthorized Hacks 5 | . 2 . 3 . . . Terminals 3 | . . . 3 . . . Botnet 2 | . . . 2 . . . Operators 1 | . . . 1 . . . Fabricators . | . . . . . . . Repair Stations . | . . . . . . . Recycling Units 2 | . 2 . . . . . Tunnel 2 | . 2 . . . . . Scanalyzers . | . . . . . . . Garrison Access . | . . . . . . . Data Cores Recovered . | . . . . . . . Used . | . . . . . . . Hacking Detections 9 | . 3 . 5 1 . . Full Trace Events 2 | . 1 . 1 . . . Feedback Events 1 | . 1 . . . . . Corruption 1 | . 1 . . . . . Feedback Blocked . | . . . . . . . Robot Schematics Acquired 1 | . 1 . . . . . Robots Built . | . . . . . . . Authchips . | . . . . . . . Time . | . . . . . . . Total Robot Build Rating . | . . . . . . . Part Schematics Acquired 1 | . 1 . . . . . Parts Built . | . . . . . . . Authchips . | . . . . . . . Time . | . . . . . . . Total Part Build Rating . | . . . . . . . Parts Repaired . | . . . . . . . Time . | . . . . . . . Parts Recycled . | . . . . . . . Recycled Matter . | . . . . . . . Retrieved Matter . | . . . . . . . Retrieved Components 20 | . 10 . 10 . . . Parts Scanalyzed 1 | . . . 1 . . . Part Schematics Acquired . | . . . . . . . Parts Damaged . | . . . . . . . Bothacking | -11 -10 -10 -9 -9 -9 -8 ------------ Run | Scr Mat Min Mat Min Exi Min Used RIF Installer . | . . . . . . . Robots Hacked . | . . . . . . . Non-combat . | . . . . . . . Combat . | . . . . . . . Robot Hacks Applied . | . . . . . . . Relay Couplers Released . | . . . . . . . Fabnet Peak Effective % . | . . . . . . . Robots Rewired . | . . . . . . . Allies Hacked . | . . . . . . . Hacks Repelled . | . . . . . . . Allies | -11 -10 -10 -9 -9 -9 -8 -------- Run | Scr Mat Min Mat Min Exi Min Total Allies 3 | . . 3 . . . . Largest Group 3 | . . 3 3 . . . Highest-Rated Group 40 | . . 40 40 . . . Highest-Rated Ally 16 | . . 16 16 . . . Total Orders . | . . . . . . . Ally Attacks 60 | . . . 50 . 10 . Total Damage 990 | . . . 561 . 429 . Kills 9 | . . . 8 . 1 . Allies Corrupted . | . . . . . . . Allies Melted . | . . . . . . . Turrets Deployed 2 | . . . . . 2 . Intel | -11 -10 -10 -9 -9 -9 -8 ------- Run | Scr Mat Min Mat Min Exi Min Robot Analysis Total 5 | . 3 . 2 . . . Derelict Logs Recovered 2 | . . 1 . 1 . . Drone Launches . | . . . . . . . Drone Recoveries . | . . . . . . . Exploration | -11 -10 -10 -9 -9 -9 -8 ------------- Run | Scr Mat Min Mat Min Exi Min Turns Passed 6256 | 12 396 710 964 1669 2371 134 Spaces Moved 2576 | 7 199 424 389 657 882 18 Core . | . . . . . . . Treads 2527 | 1 199 424 346 657 882 18 Legs 6 | 6 . . . . . . Wheels 43 | . . . 43 . . . Hover . | . . . . . . . Flight . | . . . . . . . Fastest Speed 120 | 120 160 160 140 243 163 160 Average Speed 204 | 125 160 160 189 243 215 171 Slowest Speed 250 | 160 160 160 245 243 250 240 Overloaded Moves . | . . . . . . . Propulsion Burnouts . | . . . . . . . Robots Hopped . | . . . . . . . Cave-ins Triggered . | . . . . . . . Exploration Rate (%) 53 | 2 33 95 49 99 90 4 Regions Visited 6 Branch Regions 4 Pre-discovered Areas 3 | . 2 . . . 1 . Known Exits Taken . | . . . . . . . Unknown Exits Taken 6 | 1 1 1 1 1 1 . Scrap Searched 2 | . . 1 . 1 . . Spaces Dug . | . . . . . . . Terrain Destroyed 67 | . . . 27 6 25 9 Melee . | . . . . . . . Projectile 13 | . . . . . 5 8 AOE 51 | . . . 27 6 18 . Terrain Rammed . | . . . . . . . Walls Destroyed . | . . . . . . . Machines Disabled . | . . . . . . . Actions | -11 -10 -10 -9 -9 -9 -8 --------- Run | Scr Mat Min Mat Min Exi Min Total 3287 | 9 260 442 543 705 1237 91 Wait 344 | . 33 5 49 28 181 48 Move 2570 | 6 198 423 388 656 881 18 Hop . | . . . . . . . Pick Up 54 | . 8 1 16 1 28 . Fast Attach 22 | . 1 . 5 1 13 2 Attach 7 | . . . 3 . 3 1 Detach 14 | . . . 3 . 8 3 Swap 39 | 3 2 . 13 2 19 . Drop 62 | . 6 . 13 1 40 2 Fire 120 | . 10 5 49 12 30 14 Melee 34 | . . . . . 34 . Ram . | . . . . . . . Kick . | . . . . . . . Crush 21 | . 2 8 4 4 . 3 Escape Stasis . | . . . . . . . Rewire . | . . . . . . . Trap . | . . . . . . . Miscellaneous . | . . . . . . . Route ------- -11/Scrapyard -10/Materials (discovered 2 exits: *Mat / [*Min]) -10/Mines (discovered 2 exits: *Mat x2) -9/Materials (discovered 3 exits: Mat / *Min x2) -9/Mines (discovered 4 exits: *Mat x2 / *Exi / [*Zio]) -9/Exiles -8/Mines History --------- Turn | Location | Event 3 | -11/Scrapyard | Discovered new exit (range 2) 13 | -11/Scrapyard | Entered Materials 109 | -10/Materials | Discovered new exit (range 14) 309 | -10/Materials | Build established: Mutant 384 | -10/Materials | Discovered new exit (range 10) 409 | -10/Materials | Entered Mines 413 | -10/Mines | Met a Derelict bent on vengeance 567 | -10/Mines | Discovered new exit (range 5) 650 | -10/Mines | Assisted by bots powering up and referring to "LRC-V3" 687 | -10/Mines | Found a damaged Exp. Sensor Array with a note attached 690 | -10/Mines | Found Prototype Device 820 | -10/Mines | Discovered new exit (range 12) 952 | -10/Mines | Learned location of 1 exit from Materials 1119 | -10/Mines | Entered Materials 1119 | -9/Materials | Accompanied by 3 allies 1119 | -9/Materials | Evolved 2 slots: Propulsion x1, Utility x1 1120 | -9/Materials | Identified exit to Materials 1418 | -9/Materials | Identified Exp. Sensor Array 1566 | -9/Materials | Discovered new exit (range 6) 1787 | -9/Materials | Destroyed 7 combat bots 1991 | -9/Materials | Discovered new exit (range 6) 2083 | -9/Materials | Entered Mines 2084 | -9/Mines | Assembled infested the area 2089 | -9/Mines | Assisted by a Guerilla fighting off Assembled 2577 | -9/Mines | A Derelict revealed a hidden shortcut to a safe place 2892 | -9/Mines | Deemed a non-threat by the Exiles lab entrance 2894 | -9/Mines | Discovered new exit (range 5) 3227 | -9/Mines | Discovered exit to Materials (range 15) 3358 | -9/Mines | Discovered exit to Materials (range 5) 3752 | -9/Mines | Entered Exiles 3827 | -9/Exiles | Met 8R-AWN 3867 | -9/Exiles | Met EX-HEX 3985 | -9/Exiles | Met EX-DEC 4030 | -9/Exiles | Learned location of Zion (-7) 4291 | -9/Exiles | Met EX-BIN 4329 | -9/Exiles | Aligned with FarCom system 4331 | -9/Exiles | Given EX-Vault access code 4391 | -9/Exiles | Opened EX-Vault 4409 | -9/Exiles | Found Deploy-a-Sentry 4412 | -9/Exiles | Found Deploy-a-Sentry 4476 | -9/Exiles | Warned to stay clear of 0b10 Research branches 4787 | -9/Exiles | Attacked by the Exiles 4966 | -9/Exiles | Destroyed 8R-AWN 5003 | -9/Exiles | Discovered new exit (range 15) 5049 | -9/Exiles | Found Prototype Protection 5049 | -9/Exiles | Identified 8R-AWN's Armor/EX 5073 | -9/Exiles | Found Prototype Ballistic Gun 5091 | -9/Exiles | Found Prototype Device 5152 | -9/Exiles | DAS Turret deployed 5180 | -9/Exiles | DAS Turret deployed 5274 | -9/Exiles | Identified AS-neutralizer No. 17b 5280 | -9/Exiles | Identified 8R-AWN's Boregun 5285 | -9/Exiles | Found 8R-AWN's Boregun 5659 | -9/Exiles | Destroyed EX-DEC 5671 | -9/Exiles | Destroyed EX-HEX 5704 | -9/Exiles | Destroyed EX-BIN 5750 | -9/Exiles | Found Prototype Device 5750 | -9/Exiles | Identified System Purifier 5904 | -9/Exiles | Found Prototype Processor 5904 | -9/Exiles | Identified Exp. Core Analyzer 6123 | -9/Exiles | Entered Mines 6178 | -8/Mines | Build established: Scavenger-Mutant 6195 | -8/Mines | AD-0RF came to Exiles' defense 6239 | -8/Mines | Core integrity fell below 50% 6244 | -8/Mines | Core integrity fell below 20% 6257 | -8/Mines | Destroyed by AD-0RF with AD-0RF's Magmablaster Last Messages --------------- 06239_ Overheating: Core damaged (-52). 06239_ HV Slug penetrates Wall. 06240_ 8R-AWN's Boregun broken. 06240_ Overheating: Short circuit. 06240_ 8R-AWN's Armor/EX destroyed. 06241_ Overheating: Lgt. Treads damaged (-24). 06241_ Overheating: Broken Arm. Treads damaged (-125). 06241_ Overheating: Lgt. Treads damaged (-14). 06242_ 8R-AWN's Boregun broken. 06242_ Overheating: Short circuit. 06243_ R-06 Scavenger destroyed. 06244_ Overheating: Core damaged (-68). 06246_ Lgt. Treads broken. 06246_ Overheating: Short circuit. 06251_ Slammed into AD-0RF. 06253_ Overheating: Broken Lgt. Treads damaged (-9). 06253_ Slammed into AD-0RF. 06254_ U-05 Engineer builds a Wall. 06256_ Slammed into AD-0RF. 06257_ Broken Lgt. Treads destroyed. Map ----- +----------------------------------------------------+ | ?????????????????????????????????????????????????? | | ?????????????????????????????????????????????????? | | ?????????????????????????????????????????????????? | | ?????????????????????????????????????????????????? | | ?????????????????????????????????????????????????? | | ?????????????????????????????????????????????????? | | ?????????????????????????????????????????????????? | | ?????????????????????????????????????????????????? | | ?????????????????????????????????????????????????? | | ?????????????????????????????????????????????????? | | ?????????????????????????????????????????????????? | | ?????????????????????????????????????????????????? | | ?????????????????????????????????????????????????? | | ?????????????????????????????????????????????????? | | ?????????????????????????????????????????????????? | | ?????????????????????????????????????????????????? | | ?????????????????????????????????????????????????? | | ?????????????????????????????????????????????????? | | ?????????????????????????????????????????????????? | | ?????????????????????????????????????????????????? | | ???????????????##????????????????????????????????? | | ??????????????##!###?????????????????????????????? | | ??????????????#!!! #####?????????????????????????? | | ???????????????#=!! ###????###????????????????? | | ???????????????### i##??!" ?????????????????? | | ?????????????????#### @###%###%#??????????????? | | ????????????????????## !/!**%!# "#???????????? | | ?????????????????????# #########??????????????? | | ?????????????????????## ##??????????????????????? | | ??????????????????????####???????????????????????? | | ?????????????????????????????????????????????????? | | ?????????????????????????????????????????????????? | | ?????????????????????????????????????????????????? | | ?????????????????????????????????????????????????? | | ?????????????????????????????????????????????????? | | ?????????????????????????????????????????????????? | | ?????????????????????????????????????????????????? | | ?????????????????????????????????????????????????? | | ?????????????????????????????????????????????????? | | ?????????????????????????????????????????????????? | | ?????????????????????????????????????????????????? | | ?????????????????????????????????????????????????? | | ?????????????????????????????????????????????????? | | ?????????????????????????????????????????????????? | | ?????????????????????????????????????????????????? | | ?????????????????????????????????????????????????? | | ?????????????????????????????????????????????????? | | ?????????????????????????????????????????????????? | | ?????????????????????????????????????????????????? | | ?????????????????????????????????????????????????? | +----------------------------------------------------+ Best States ------------- Heat Dissipation 42 Energy Generation 17 Energy Capacity 280 Matter Stores 300 Matter Capacity 300 Sight Range 16 Terrain Scan Density 10 Armor Coverage 900 Resistance: EX 90 Weapon Cycling 25 Evasion (%) 45 Core Analysis 8 Recoil Reduction 3 Defensive Hacking 11 Item Schematics ----------------- Huge Storage Unit | -10/Materials | Hacked Robot Schematics ------------------ M-13 Machinist | -10/Materials | Hacked Fabricated ------------ Nothing Alien Tech Used ----------------- None Achievements -------------- None Challenges ------------ None Game ------ Seed ZioniteWardroneBeamcaster Manual? 0 Play Time 00:31:55 Cumulative 1098.8 hours Start 2022.05.10 @ 03:32:19 End 2022.05.10 @ 04:07:22 Sessions 2 Manual Loads 0 Difficulty Rogue Special Mode None Game No. 786 Rogue 782 Adventurer 4 Explorer 0 Win Type - Total 120 Types 92/9/8/5/2/0/0/2/2 Lore% 94 Gallery% 97 Achievement% 97 Wizard Run 0 Options --------- ASCII 0 Keyboard 1 Movement Vi Keybinds 0 Fullscreen 0 Font 16/Terminus Map View 76x50 Tactical HUD 1 Map Filters NONE Filters NONE Steam 1 RUN: 78e67248-65b7-44bd-8dee-c4bc62a73ae8